bitfinex/quotes_SOLUSD_20220210
["timestamp","ask_amount","ask_price","bid_price","bid_amount"]
[1644489943498,4.394,113.77,113.71,0.22]
[1644489943696,12.65,113.76,113.71,0.244]
[1644489943998,4.396,113.75,113.71,0.244]
[1644489944295,12.65,113.74,113.71,0.22]
[1644489944497,17.046,113.73,113.71,0.22]
[1644489944695,26.949,113.73,113.71,0.22]
[1644489945096,17.046,113.73,113.71,0.22]
[1644489945298,12.65,113.73,113.71,0.22]
[1644489945898,6.62722154,113.78,113.72,6.06439994]
[1644489946202,12.65,113.77,113.72,13.19739994]
[1644489946398,12.65,113.77,113.72,13.44739994]
[1644489946797,12.65,113.77,113.73,35.87159263]
[1644489947198,12.65,113.77,113.73,36.12159263]
[1644489947598,4.394,113.79,113.73,36.12159263]
[1644489947798,17.045,113.84,113.73,50.20459263]
[1644489947998,4.394,113.87,113.74,1.98991467]
[1644489948297,75.5085,113.9,113.74,1.98991467]
[1644489948298,4.393,113.89,113.75,4.417]
[1644489948497,17.043,113.89,113.76,0.024]
[1644489948700,44.80478524,113.88,113.76,35.0508835]
[1644489948901,37.76484214,113.86,113.78,41.14149489]
[1644489949200,37.76484214,113.86,113.79,0.024]
[1644489949400,35.14069578,113.84,113.79,0.024]
[1644489949601,47.96828461,113.82,113.75,0.024]
[1644489950202,17.5803,113.85,113.75,0.024]
[1644489951205,53.00036029,113.84,113.75,41.41468621]
[1644489951403,39.98299106,113.82,113.76,0.024]
[1644489951606,43.90729255,113.8,113.76,0.024]
[1644489951803,43.90729255,113.8,113.75,41.39068621]
[1644489952203,6.62522154,113.79,113.73,0.024]
[1644489952403,32.46812154,113.79,113.73,0.024]
[1644489952704,30.2369,113.79,113.72,0.024]
[1644489953102,48.15635397,113.78,113.72,0.024]
[1644489954305,65.20035397,113.78,113.72,0.024]
[1644489955807,35.77195155,113.76,113.72,0.024]
[1644489956008,17.044,113.75,113.71,0.22]
[1644489956210,14.88122154,113.75,113.71,0.22]
[1644489956408,12.65,113.75,113.71,0.22]
[1644489956809,39.7527488,113.74,113.71,0.22]
[1644489957009,17.046,113.73,113.71,0.22]
[1644489957309,14.88122154,113.73,113.68,0.024]
[1644489957609,12.65,113.73,113.64,0.024]
[1644489957808,39.7527488,113.74,113.65,4.398]
[1644489958009,39.7527488,113.74,113.64,4.397]
[1644489958210,39.7527488,113.74,113.65,36.78982958]
[1644489958410,39.7527488,113.74,113.65,36.81382958]
[1644489958610,17.047,113.73,113.65,0.024]
[1644489958813,17.047,113.73,113.64,0.024]
[1644489959010,28.332,113.73,113.63,0.024]
[1644489959412,13.2001,113.72,113.61,4.422]
[1644489959612,57.01849106,113.71,113.62,38.02984393]
[1644489959811,52.62049106,113.71,113.64,38.37731124]
[1644489960011,12.65,113.71,113.64,38.37731124]
[1644489960212,17.048,113.71,113.61,4.398]
[1644489960413,12.65,113.73,113.61,10.398]
[1644489960612,17.048,113.72,113.61,28.6522]
[1644489960834,12.65,113.71,113.61,34.6522]
[1644489961315,38.12150669,113.7,113.62,36.27663484]
[1644489961712,38.12150669,113.7,113.62,42.27663484]
[1644489962311,38.12150669,113.7,113.61,4.398]
[1644489962512,38.12150669,113.7,113.6,1.22262024]
[1644489962513,17.049,113.69,113.59,1.22262024]
[1644489962714,198.1069683,113.69,113.55,4.399]
[1644489962913,20.71674676,113.68,113.55,4.399]
[1644489963114,17.05,113.67,113.53,4.4]
[1644489963315,53.58605733,113.66,113.54,39.8384815]
[1644489963516,17.051,113.65,113.54,39.8384815]
[1644489963716,17.051,113.65,113.55,4.401]
[1644489963717,37.35884296,113.64,113.55,4.401]
[1644489963917,37.35884296,113.64,113.56,41.02959393]
[1644489963918,12.65,113.63,113.56,41.02959393]
[1644489964717,12.65,113.63,113.56,47.27959393]
[1644489964916,12.65,113.63,113.56,41.27959393]
[1644489965316,40.18169781,113.62,113.56,41.27959393]
[1644489965521,44.58269781,113.62,113.56,41.27959393]
[1644489965918,44.58269781,113.62,113.52,17.6103]
[1644489966122,44.58269781,113.62,113.5,1.22262024]
[1644489966123,28.09542154,113.61,113.5,1.22262024]
[1644489966319,28.09542154,113.61,113.47,4.402]
[1644489966320,4.402,113.6,113.47,4.402]
[1644489966522,12.65,113.59,113.46,1.22262024]
[1644489966720,4.404,113.58,113.47,4.404]
[1644489966920,56.82544866,113.57,113.48,40.28521305]
[1644489967119,4.404,113.56,113.48,40.28521305]
[1644489967323,60.47538181,113.55,113.43,5.62662024]
[1644489967522,60.47538181,113.55,113.4,60.07724671]
[1644489967523,4.405,113.54,113.41,4.405]
[1644489967722,12.65,113.53,113.41,4.405]
[1644489968347,40.4372509,113.52,113.42,36.97607389]
[1644489968546,53.0872509,113.52,113.44,39.17240108]
[1644489968747,53.0872509,113.52,113.44,39.42240108]
[1644489968947,53.0872509,113.52,113.44,45.42240108]
[1644489969648,12.65,113.52,113.44,45.42240108]
[1644489971151,17.056,113.52,113.44,45.42240108]
[1644489972151,113.9521,113.67,113.45,4.406]
[1644489972152,17.056,113.54,113.45,4.406]
[1644489972352,13.2192,113.57,113.45,10.656]
[1644489972550,25.8692,113.57,113.45,10.656]
[1644489972953,25.8692,113.57,113.46,42.13737438]
[1644489973149,4.404,113.56,113.46,42.13737438]
[1644489973351,4.404,113.56,113.46,48.38737438]
[1644489973553,4.404,113.56,113.46,42.38737438]
[1644489973952,12.65,113.55,113.46,42.38737438]
[1644489974255,4.405,113.54,113.48,42.39476152]
[1644489974452,40.87848424,113.53,113.48,42.39476152]
[1644489974653,10.59,113.53,113.48,42.39476152]
[1644489976054,10.59,113.53,113.48,42.66876152]
[1644489976254,14.995,113.55,113.48,42.66876152]
[1644489976457,10.59,113.55,113.48,42.64476152]
[1644489976653,10.59,113.55,113.49,0.024]
[1644489976859,14.994,113.55,113.49,0.024]
[1644489977254,10.59,113.55,113.49,0.024]
[1644489977454,212.3762,113.54,113.38,24.24220137]
[1644489977654,212.3762,113.54,113.37,0.22052357]
[1644489977655,4.58,113.45,113.37,0.22052357]
[1644489977855,10.59,113.44,113.34,4.407]
[1644489978054,10.59,113.44,113.32,7.0]
[1644489978055,17.22922154,113.44,113.32,7.0]
[1644489978255,12.82122154,113.44,113.33,4.409]
[1644489978453,10.59,113.44,113.33,52.10071626]
[1644489979254,4.409,113.43,113.32,7.0]
[1644489979458,142.94,113.42,113.32,7.0]
[1644489979655,13.2437,113.39,113.32,7.0]
[1644489979856,15.0,113.38,113.27,3.6955808]
[1644489980058,10.59,113.38,113.27,3.6955808]
[1644489980259,53.0698638,113.38,113.28,41.62989964]
[1644489980458,4.41,113.37,113.28,41.62989964]
[1644489980658,10.59,113.36,113.28,41.62989964]
[1644489981058,10.59,113.36,113.28,46.04189964]
[1644489981459,10.59,113.36,113.28,41.62989964]
[1644489981460,4.412,113.35,113.28,41.62989964]
[1644489981863,15.002,113.35,113.28,41.62989964]
[1644489982063,10.59,113.35,113.28,41.62989964]
[1644489982262,10.59,113.35,113.27,3.6955808]
[1644489982263,4.412,113.34,113.27,3.6955808]
[1644489982462,10.59,113.33,113.27,3.6955808]
[1644489983063,4.413,113.32,113.27,3.6955808]
[1644489983264,10.59,113.32,113.28,39.88659722]
[1644489983668,4.413,113.31,113.28,39.88659722]
[1644489984671,4.663,113.31,113.28,39.88659722]
[1644489984868,0.25,113.31,113.28,39.88659722]
[1644489985269,10.84,113.33,113.28,39.88659722]
[1644489985870,10.59,113.33,113.28,39.88659722]
[1644489986271,10.59,113.35,113.28,39.88659722]
[1644489986670,4.412,113.34,113.28,39.88659722]
[1644489986875,10.59,113.33,113.28,39.88659722]
[1644489987095,4.412,113.32,113.28,39.88659722]
[1644489987771,10.59,113.33,113.28,39.88659722]
[1644489987972,4.412,113.32,113.28,39.88659722]
[1644489988171,10.59,113.33,113.28,39.88659722]
[1644489988371,4.662,113.32,113.28,39.88659722]
[1644489989671,0.25,113.32,113.28,39.88659722]
[1644489989874,10.59,113.33,113.28,39.88659722]
[1644489990172,4.412,113.32,113.28,39.88659722]
[1644489990372,0.25,113.33,113.28,39.88659722]
[1644489990571,4.662,113.33,113.28,39.88659722]
[1644489991174,10.59,113.34,113.28,39.88659722]
[1644489991376,4.412,113.38,113.28,40.13659722]
[1644489991576,10.59,113.36,113.28,40.13659722]
[1644489991977,10.59,113.37,113.29,50.0]
[1644489992176,10.59,113.41,113.31,99.0]
[1644489992378,2.23122154,113.42,113.31,99.25]
[1644489992379,4.41,113.42,113.31,99.25]
[1644489992576,4.41,113.42,113.31,109.84]
[1644489992775,23.8686,113.44,113.32,0.024]
[1644489992974,23.8686,113.44,113.32,8.833]
[1644489993177,23.8686,113.44,113.33,47.72385319]
[1644489993377,23.8686,113.44,113.35,42.84839313]
[1644489993674,15.0,113.46,113.36,0.024]
[1644489993875,15.0,113.46,113.36,4.432]
[1644489994078,15.0,113.46,113.37,0.024]
[1644489994674,15.0,113.46,113.37,35.40054715]
[1644489995276,54.36051655,113.46,113.37,35.40054715]
[1644489996277,54.36051655,113.46,113.37,35.17409821]
[1644489996676,54.61051655,113.46,113.37,35.17409821]
[1644489996877,15.25,113.46,113.37,35.17409821]
[1644489997280,4.66,113.46,113.37,35.17409821]
[1644489997681,4.41,113.46,113.37,35.17409821]
[1644489997978,4.408,113.47,113.39,40.31790984]
[1644489998679,4.408,113.47,113.39,40.56790984]
[1644489998877,4.408,113.47,113.39,40.31790984]
[1644489999079,4.408,113.47,113.39,40.56790984]
[1644489999279,52.61329634,113.48,113.4,4.408]
[1644489999479,10.59,113.5,113.39,40.56790984]
[1644489999480,4.407,113.49,113.39,40.56790984]
[1644489999881,4.407,113.49,113.39,51.59990984]
[1644490001683,4.407,113.51,113.39,51.59990984]
[1644490002109,4.407,113.51,113.39,57.59990984]
[1644490002311,4.407,113.51,113.39,51.59990984]
[1644490002710,4.407,113.51,113.39,70.82490984]
[1644490002917,73.133,113.52,113.39,70.82490984]
[1644490003110,73.133,113.52,113.4,4.407]
[1644490003310,73.133,113.52,113.4,4.657]
[1644490003510,73.133,113.52,113.41,46.84384487]
[1644490003712,4.406,113.51,113.41,46.84384487]
[1644490003912,4.406,113.51,113.41,47.09384487]
[1644490004712,4.406,113.51,113.42,4.406]
[1644490004912,4.406,113.54,113.42,14.191]
[1644490005112,4.406,113.54,113.42,14.441]
[1644490005514,4.406,113.54,113.43,58.80238169]
[1644490005712,48.3296,113.55,113.43,58.80238169]
[1644490005912,48.3296,113.55,113.43,59.05238169]
[1644490006813,48.5796,113.55,113.43,59.05238169]
[1644490007013,48.5796,113.55,113.44,4.405]
[1644490007212,48.3296,113.55,113.45,42.02945193]
[1644490007413,78.5866,113.56,113.46,4.405]
[1644490007614,4.405,113.56,113.47,48.44548021]
[1644490008221,4.405,113.56,113.47,48.69548021]
[1644490008716,410.39452714,113.57,113.48,4.404]
[1644490008919,410.39452714,113.57,113.49,34.36402937]
[1644490009118,410.39452714,113.57,113.51,41.89653254]
[1644490009319,42.47966473,113.59,113.53,46.12369402]
[1644490009518,4.402,113.58,113.53,46.12369402]
[1644490011518,41.71971736,113.57,113.53,46.12369402]
[1644490011720,4.402,113.56,113.48,13.2396]
[1644490011919,4.402,113.56,113.47,0.274]
[1644490012119,4.402,113.56,113.48,0.024]
[1644490012820,4.402,113.56,113.48,40.46797851]
[1644490013023,4.404,113.6,113.49,0.024]
[1644490013819,17.8719,113.6,113.49,0.024]
[1644490014021,43.27055604,113.59,113.49,0.024]
[1644490014220,44.67889863,113.57,113.49,0.024]
[1644490015721,4.404,113.59,113.49,0.024]
[1644490016823,42.07215412,113.58,113.49,0.024]
[1644490017024,4.402,113.57,113.49,0.024]
[1644490017222,41.84598205,113.56,113.48,39.20565983]
[1644490018025,4.404,113.59,113.48,39.20565983]
[1644490019132,37.95975332,113.58,113.48,39.20565983]
[1644490019329,37.95975332,113.58,113.5,40.67565797]
[1644490019830,38.20975332,113.58,113.5,40.67565797]
[1644490020834,4.404,113.59,113.5,40.67565797]
[1644490021033,4.402,113.61,113.5,40.92565797]
[1644490021233,4.402,113.61,113.5,51.51565797]
[1644490021832,46.23679702,113.61,113.5,51.51565797]
[1644490022233,41.83479702,113.61,113.52,46.10624991]
[1644490023834,42.08479702,113.61,113.52,46.10624991]
[1644490024434,44.34944925,113.59,113.52,46.10624991]
[1644490025738,44.34944925,113.59,113.51,4.402]
[1644490025935,4.402,113.58,113.51,4.402]
[1644490026936,60.16967352,113.57,113.51,4.402]
[1644490027136,4.402,113.56,113.51,4.402]
[1644490027436,38.28746077,113.55,113.51,4.402]
[1644490027637,4.404,113.54,113.44,50.8009]
[1644490027936,17.627,113.54,113.43,28.9037]
[1644490028136,17.627,113.54,113.43,30.4987]
[1644490028361,17.627,113.54,113.43,24.4987]
[1644490028536,44.62287131,113.53,113.44,42.17521926]
[1644490028736,44.62287131,113.53,113.44,42.42521926]
[1644490029036,44.62287131,113.53,113.44,42.17521926]
[1644490029237,46.85409285,113.53,113.44,42.17521926]
[1644490029436,38.57358628,113.51,113.44,42.17521926]
[1644490030639,13.2251,113.52,113.44,42.17521926]
[1644490030839,17.6291,113.54,113.44,42.42521926]
[1644490031038,17.6291,113.54,113.45,4.405]
[1644490031238,17.8791,113.54,113.45,4.405]
[1644490031638,54.88571313,113.54,113.46,36.67162187]
[1644490032038,54.63571313,113.54,113.46,36.67162187]
[1644490033238,54.88571313,113.54,113.46,36.67162187]
[1644490034841,10.59,113.53,113.46,36.67162187]
[1644490035040,60.88454378,113.52,113.46,36.67162187]
[1644490035240,72.52554378,113.52,113.46,36.67162187]
[1644490035441,72.52554378,113.52,113.43,0.024]
[1644490035640,12.82122154,113.51,113.42,0.024]
[1644490035868,4.406,113.5,113.42,0.024]
[1644490036044,13.2281,113.49,113.42,0.024]
[1644490036241,4.407,113.48,113.42,0.024]
[1644490036443,51.21084201,113.48,113.42,35.50729851]
[1644490036641,51.21084201,113.48,113.42,35.53129851]
[1644490037542,46.80384201,113.48,113.42,35.53129851]
[1644490037741,60.03314201,113.48,113.42,35.50729851]
[1644490037942,60.03314201,113.48,113.4,4.431]
[1644490038142,4.407,113.47,113.4,0.024]
[1644490038541,4.407,113.47,113.38,0.024]
[1644490038941,48.50012877,113.46,113.38,38.11806887]
[1644490039142,4.408,113.45,113.39,0.024]
[1644490039344,36.65901186,113.44,113.38,38.09406887]
[1644490039743,36.65901186,113.44,113.38,38.11806887]
[1644490041051,41.06701186,113.44,113.38,38.11806887]
[1644490042553,41.31701186,113.44,113.38,38.11806887]
[1644490043153,36.90901186,113.44,113.38,38.11806887]
[1644490045279,4.408,113.43,113.38,0.024]
[1644490045481,4.408,113.43,113.35,13.2567]
[1644490045680,4.408,113.43,113.36,0.024]
[1644490046080,4.658,113.43,113.36,0.024]
[1644490046280,40.39645479,113.42,113.36,0.024]
[1644490046490,4.409,113.41,113.36,0.024]
[1644490046682,43.36497132,113.4,113.36,0.024]
[1644490046882,43.36497132,113.4,113.34,0.024]
[1644490047082,47.77497132,113.4,113.34,0.024]
[1644490047288,47.77497132,113.4,113.33,0.024]
[1644490047583,43.36497132,113.4,113.33,52.29254115]
[1644490048987,4.41,113.39,113.33,47.88254115]
[1644490049584,43.28196678,113.38,113.33,47.88254115]
[1644490049784,43.28196678,113.38,113.33,47.85854115]
[1644490049983,4.41,113.4,113.33,47.85854115]
[1644490050185,13.2368,113.41,113.33,47.88254115]
[1644490050186,17.6468,113.41,113.33,47.88254115]
[1644490050786,13.2368,113.41,113.33,47.88254115]
[1644490051287,17.6468,113.41,113.33,61.11864115]
[1644490051493,4.41,113.41,113.33,61.11864115]
[1644490051690,4.66,113.41,113.33,61.11864115]
[1644490051889,44.44844114,113.4,113.33,61.11864115]
[1644490052890,44.44844114,113.4,113.33,47.88254115]
[1644490053089,4.41,113.39,113.33,47.88254115]
[1644490053490,4.41,113.42,113.33,52.29254115]
[1644490053692,4.41,113.42,113.34,0.024]
[1644490054292,4.41,113.42,113.34,13.258]
[1644490054494,38.84842547,113.43,113.35,40.37953781]
[1644490054698,38.84842547,113.43,113.35,40.40353781]
[1644490054894,4.409,113.44,113.35,40.65353781]
[1644490055194,511.6444486,113.47,113.38,13.2295]
[1644490055394,507.2354486,113.47,113.38,13.2295]
[1644490055799,41.26779756,113.46,113.39,34.56386249]
[1644490055996,4.408,113.45,113.39,34.56386249]
[1644490056799,4.658,113.45,113.39,34.56386249]
[1644490056999,4.408,113.45,113.39,47.79316249]
[1644490057199,4.408,113.46,113.39,47.79316249]
[1644490058104,48.61195958,113.46,113.39,47.79316249]
[1644490058701,48.86195958,113.46,113.39,47.79316249]
[1644490059001,3.97468012,113.47,113.4,103.0]
[1644490059208,6.87399999,113.57,113.46,13.2204]
[1644490059403,4.407,113.57,113.47,12.72]
[1644490059603,4.404,113.59,113.47,12.72]
[1644490059806,4.404,113.59,113.47,12.97]
[1644490060002,47.5802491,113.59,113.48,4.404]
[1644490060203,47.5802491,113.59,113.49,12.72]
[1644490060401,45.00822141,113.57,113.49,12.72]
[1644490060603,38.49334917,113.55,113.49,25.9369]
[1644490063305,4.404,113.54,113.49,12.72]
[1644490063508,36.24359053,113.53,113.42,4.404]
[1644490064606,40.61500559,113.51,113.42,13.2245]
[1644490064807,4.406,113.5,113.42,13.2245]
[1644490065007,40.61500559,113.51,113.43,4.406]
[1644490065209,45.02100559,113.51,113.42,4.406]
[1644490065410,45.02100559,113.51,113.41,14.986]
[1644490066108,45.02100559,113.51,113.41,15.236]
[1644490066611,45.02100559,113.51,113.41,14.986]
[1644490066808,45.02100559,113.51,113.43,13.2235]
[1644490067011,58.24670559,113.51,113.41,14.986]
[1644490067210,66.00470559,113.51,113.41,4.406]
[1644490067811,66.25470559,113.51,113.41,4.406]
[1644490068410,61.84870559,113.51,113.4,4.406]
[1644490069111,54.09070559,113.51,113.41,10.58]
[1644490069312,40.86500559,113.51,113.42,4.406]
[1644490069515,40.86500559,113.51,113.43,23.8037]
[1644490070314,40.61500559,113.51,113.43,23.8037]
[1644490071117,35.59231959,113.49,113.43,23.8037]
[1644490071815,0.25,113.49,113.43,23.8037]
[1644490072216,4.406,113.51,113.43,23.8037]
[1644490072416,0.25,113.5,113.43,24.0537]
[1644490072616,4.406,113.53,113.43,24.0537]
[1644490072817,34.83688291,113.52,113.43,24.0537]
[1644490073315,35.08688291,113.52,113.43,24.0537]
[1644490074118,35.08688291,113.52,113.43,26.01647109]
[1644490074417,35.08688291,113.52,113.43,24.0537]
[1644490074821,35.08688291,113.52,113.43,23.8037]
[1644490075119,41.05530815,113.5,113.43,23.8037]
[1644490075719,41.30530815,113.5,113.43,23.8037]
[1644490075920,48.72930815,113.5,113.43,23.8037]
[1644490076120,48.72930815,113.5,113.42,13.2258]
[1644490076321,4.406,113.49,113.42,13.2258]
[1644490076620,47.73016836,113.48,113.42,13.2258]
[1644490079140,4.406,113.49,113.42,13.2258]
[1644490079341,4.406,113.49,113.43,10.58]
[1644490079541,13.2249,113.51,113.43,23.8038]
[1644490080141,46.58112935,113.5,113.43,23.8038]
[1644490081942,17.6297,113.52,113.43,23.8038]
[1644490082140,24.2592,113.54,113.43,23.8038]
[1644490082141,4.406,113.54,113.43,26.01657109]
[1644490082344,4.405,113.56,113.43,26.01657109]
[1644490083041,48.81358912,113.55,113.43,25.76657109]
[1644490083240,4.405,113.54,113.43,26.01657109]
[1644490083441,44.07975508,113.53,113.44,4.405]
[1644490083640,44.07975508,113.53,113.46,13.2194]
[1644490083841,44.07975508,113.53,113.47,10.58]
[1644490084041,44.07975508,113.53,113.47,14.985]
[1644490085049,50.93099999,113.6,113.48,13.2177]
[1644490085246,13.2152,113.59,113.49,14.982]
[1644490085442,4.402,113.58,113.49,22.028]
[1644490085643,4.402,113.58,113.49,17.626]
[1644490085847,4.402,113.6,113.49,17.626]
[1644490086042,36.63379271,113.57,113.49,17.626]
[1644490086244,36.63379271,113.57,113.51,13.2152]
[1644490086444,36.63379271,113.57,113.52,10.58]
[1644490086643,13.2137,113.59,113.52,10.58]
[1644490086843,49.969,113.61,113.52,20.56]
[1644490087546,17.6142,113.61,113.52,33.7736]
[1644490087744,38.88037397,113.6,113.52,33.7736]
[1644490090149,2.46699999,113.64,113.53,4.402]
[1644490090347,2.71699999,113.64,113.56,13.2085]
[1644490090547,0.25,113.64,113.56,13.2085]
[1644490090752,2.46699999,113.65,113.56,13.2085]
[1644490090948,5.22103329,113.65,113.57,10.58]
[1644490091149,47.73009016,113.64,113.57,10.58]
[1644490091749,60.93909016,113.64,113.57,10.58]
[1644490092250,47.73009016,113.64,113.57,10.58]
[1644490092450,47.73009016,113.64,113.57,23.7867]
[1644490092651,43.32909016,113.64,113.57,23.7867]
[1644490093649,43.57909016,113.64,113.57,23.7867]
[1644490094050,43.32909016,113.64,113.57,23.7867]
[1644490094851,4.401,113.66,113.57,23.7867]
[1644490095853,34.78083115,113.65,113.57,23.7867]
[1644490097055,37.99875511,113.63,113.57,23.7867]
[1644490097859,37.99875511,113.63,113.57,10.58]
[1644490099656,38.24875511,113.63,113.57,10.58]
[1644490100262,37.36299216,113.61,113.55,10.58]
[1644490100462,4.402,113.6,113.51,22.8161]
[1644490100662,35.74629059,113.59,113.52,10.58]
[1644490100863,4.402,113.58,113.52,10.58]
[1644490101061,45.28921979,113.57,113.52,10.58]
[1644490101461,5.64875119,113.61,113.52,10.58]
[1644490101661,1.24675119,113.61,113.52,23.7924]
[1644490101859,4.402,113.62,113.52,23.7924]
[1644490102061,45.29195119,113.63,113.52,23.7924]
[1644490102261,4.402,113.62,113.52,23.7924]
[1644490102463,48.21991432,113.61,113.52,23.7924]
[1644490102660,39.08135615,113.59,113.52,23.7924]
[1644490103561,39.08135615,113.59,113.52,10.58]
[1644490104764,39.33135615,113.59,113.52,10.58]
[1644490106266,39.08135615,113.59,113.52,10.58]
[1644490106466,39.08135615,113.59,113.52,23.7925]
[1644490106866,13.2131,113.6,113.52,23.7925]
[1644490107064,13.2116,113.61,113.52,23.7925]
[1644490107269,17.8636,113.61,113.52,23.7925]
[1644490107967,35.90110941,113.6,113.52,23.7925]
[1644490108868,50.3606606,113.6,113.52,10.58]
[1644490109068,4.402,113.59,113.52,10.58]
[1644490109268,42.14588147,113.58,113.52,10.58]
[1644490109469,4.402,113.57,113.52,10.58]
[1644490109668,47.12092718,113.56,113.52,10.58]
[1644490111069,47.12092718,113.56,113.5,10.58]
[1644490111668,4.404,113.55,113.47,10.58]
[1644490111869,45.6298601,113.54,113.47,10.58]
[1644490112869,58.8496601,113.54,113.47,10.58]
[1644490113069,63.2546601,113.54,113.47,10.58]
[1644490115173,45.6298601,113.54,113.47,23.7987]
[1644490115776,45.8798601,113.54,113.48,4.405]
[1644490115974,45.8798601,113.54,113.49,10.58]
[1644490116175,45.6298601,113.54,113.49,10.58]
[1644490116375,45.6298601,113.54,113.49,23.7964]
[1644490117578,45.8798601,113.54,113.49,23.7964]
[1644490121880,0.25,113.54,113.49,23.7964]
[1644490122080,14.46265119,113.57,113.49,23.7964]
[1644490122282,13.2159,113.57,113.49,23.7964]
[1644490122684,43.71759756,113.56,113.49,23.7964]
[1644490124386,43.71759756,113.56,113.49,13.2164]
[1644490124585,43.96759756,113.56,113.49,13.2164]
[1644490124988,48.37159756,113.56,113.49,13.2164]
[1644490125387,61.58829756,113.56,113.49,13.2164]
[1644490125588,61.58829756,113.56,113.49,12.7]
[1644490125792,62.83504875,113.56,113.49,12.7]
[1644490126300,1.24675119,113.55,113.49,12.7]
[1644490126502,49.4842516,113.54,113.49,12.7]
[1644490126704,4.404,113.53,113.49,12.7]
[1644490126904,45.62266317,113.52,113.49,12.7]
[1644490129305,50.02766317,113.52,113.47,12.7]
[1644490130307,50.27766317,113.52,113.47,12.7]
[1644490130505,45.87266317,113.52,113.47,12.7]
[1644490130906,45.87266317,113.52,113.47,25.9197]
[1644490132907,47.11941436,113.52,113.47,12.7]
[1644490133507,45.87266317,113.52,113.47,12.7]
[1644490137114,45.62266317,113.52,113.47,12.7]
[1644490137317,46.86941436,113.52,113.47,12.7]
[1644490137515,45.62266317,113.52,113.47,12.7]
[1644490138321,14.46675119,113.53,113.47,25.9193]
[1644490138517,1.24675119,113.54,113.47,27.87711741]
[1644490138820,1.24675119,113.55,113.48,4.404]
[1644490139017,1.24675119,113.55,113.49,12.7]
[1644490139218,1.24675119,113.55,113.49,14.65781741]
[1644490139820,1.49675119,113.55,113.5,13.2154]
[1644490140018,1.24675119,113.55,113.51,12.7]
[1644490140220,0.25,113.55,113.51,12.7]
[1644490140419,41.73646521,113.56,113.51,12.7]
[1644490140619,1.24675119,113.55,113.51,12.7]
[1644490140819,1.24675119,113.56,113.51,12.7]
[1644490141919,1.49675119,113.56,113.51,25.9151]
[1644490142119,1.24675119,113.56,113.51,25.9151]
[1644490142720,1.49675119,113.56,113.51,25.9151]
[1644490142921,1.24675119,113.56,113.51,25.9151]
[1644490143220,1.24675119,113.56,113.51,27.87291741]
[1644490143422,1.24675119,113.57,113.51,27.87291741]
[1644490144221,1.27075119,113.58,113.51,27.87291741]
[1644490144422,1.24675119,113.58,113.51,27.87291741]
[1644490144821,1.24675119,113.57,113.51,27.87291741]
[1644490145021,1.24675119,113.57,113.51,38.27491741]
[1644490145223,1.49675119,113.57,113.51,38.27491741]
[1644490145822,0.25,113.57,113.51,38.27491741]
[1644490146021,1.49675119,113.57,113.51,38.27491741]
[1644490146221,0.25,113.57,113.51,38.27491741]
[1644490146822,1.52075119,113.58,113.51,38.27491741]
[1644490147025,1.24675119,113.57,113.51,38.27491741]
[1644490147327,1.52075119,113.58,113.51,38.27491741]
[1644490147524,1.49675119,113.58,113.51,38.27491741]
[1644490147724,1.49675119,113.58,113.51,32.27491741]
[1644490149726,1.49675119,113.58,113.51,32.52491741]
[1644490150127,1.24675119,113.58,113.51,32.52491741]
[1644490150327,1.27075119,113.59,113.51,32.52491741]
[1644490150526,1.27075119,113.59,113.51,120.27491741]
[1644490150527,1.24675119,113.59,113.51,120.27491741]
[1644490154632,1.49675119,113.59,113.51,120.27491741]